[Event "CCT Julius Baer-D2 2024"]
[Site "Online"]
[Date "2024.09.27"]
[Round "1"]
[White "Robson, Ray"]
[Black "Vidit, Santosh Gujrathi"]
[Result "0-1"]
[ECO "D11"]
[WhiteElo "2700"]
[BlackElo "2720"]
[Annotator "TA"]
[PlyCount "94"]
[EventDate "2024.09.25"]
[EventType "swiss"]
[EventCountry "NET"]
[SourceTitle "playchess.com"]
[Source "ChessBase"]
[SourceQuality "1"]
[TimeControl "600+2"]

{[%evp 24,94,59,35,33,16,11,20,9,27,22,20,22,-80,-83,-53,-20,-33,0,0,12,16,28,24,207,213,235,244,225,0,122,-14,-14,-288,-284,-276,-242,-265,-206,-215,-213,-222,-219,-318,-312,-322,-287,-318,-295,-347,-254,-300,-277,-349,-268,-300,-279,-262,-240,-368,-245,-308,-93,-486,-454,-727,-515,-493,-366,-429,-481,-29976,-29977]} 1. Nf3 {[%emt 0:00:02]} Nf6 {[%emt 0:00:04]} 2. d4 {[%emt 0:00:03]} d5 {[%emt 0:00:03]} 3. g3 {[%emt 0:00:01]} Bf5 {[%emt 0:00:07]} 4. c4 {[%emt 0:00:02]} e6 {[%emt 0:00:04]} 5. Nc3 {[%emt 0:00:18]} c6 {[%emt 0:00:11]} 6. Bg2 {[%emt 0:00:23]} h6 {[%emt 0:00:03]} 7. Qb3 {[%emt 0:00:04] now scores much better than the old 7.0-0. D11: Slav Defence: 3 Nf3 sidelines and 3...Nf6 4 e3 Bg4.} Qb6 {[%emt 0:00:05]} 8. c5 {[%emt 0:00:07]} Qa6 {[%emt 0:00:16]} 9. Bf1 {[%emt 0:00:11]} b5 {[%emt 0:00:35]} 10. a4 {[%emt 0:00:11]} bxa4 {[%emt 0:00:23]} 11. Nxa4 $146 {[%emt 0:01:22]} ({Predecessor:} 11. Rxa4 Qc8 12. Bf4 Be7 13. Qa3 a6 14. Ne5 O-O 15. f3 Bc2 16. b3 Nfd7 17. e4 dxe4 18. fxe4 {1-0 Galperin,P (2518)-Iniyan,P (2518) Junior Speed Qual 3 blitz 2022 (2.3)}) 11... Ne4 {[%emt 0:00:31]} 12. Ra3 {[%emt 0:00:41]} Nd7 {[%emt 0:01:36]} 13. Nb6 {[%emt 0:00:24]} axb6 {[%emt 0:00:00]} 14. Rxa6 {[%emt 0:00:08]} Rxa6 {[%emt 0:00:00]} 15. Bg2 {[%emt 0:00:13]} Be7 $1 {[%emt 0:00:08]} 16. O-O {[%emt 0:00:22]} O-O $1 {[%emt 0:00:20]} 17. Bf4 {[%emt 0:00:28]} Rfa8 {[%emt 0:00:08]} 18. cxb6 {[%emt 0:01:31]} (18. Ne5 $11 Nxe5 19. Bxe4 (19. Bxe5 Nd2 $17) (19. cxb6 Rb8 $11) 19... Bxe4 20. cxb6) 18... Rxb6 $17 {[%emt 0:00:02]} 19. Qd1 {[%emt 0:00:03]} (19. Qc2 $2 Nxg3 20. Qd1 Nxf1 $19) 19... Ra2 {[%emt 0:00:34]} 20. Qc1 {[%emt 0:00:31]} Bd8 {[%emt 0:02:10]} (20... Raxb2 21. Bc7 R6b3 22. Qxc6 $14) (20... Rbxb2 $6 21. Qxc6 Nf8 22. Qe8 $14) 21. Nd2 {[%emt 0:00:32]} Nxd2 {[%emt 0:00:32]} 22. Bxd2 {[%emt 0:00:05]} Rbxb2 {[%emt 0:00:19]} 23. Qxc6 {[%emt 0:01:23]} Rxd2 $2 {[%emt 0:00:07]} (23... Nf6 $11 {and Black is okay.} 24. Bf4 Kh7 (24... Rxe2 $2 25. Qc8 $18)) 24. Qxd7 $18 {[%emt 0:00:01]} Bf6 {[%emt 0:00:01]} 25. Bxd5 $1 {[%emt 0:01:03]} Rab2 {[%emt 0:00:03]} 26. e3 $2 {[%emt 0:00:15]} (26. Qe8+ $18 Kh7 27. Bf3) 26... Bd3 {[%emt 0:00:07]} (26... g6 $1 $11 {remains equal.} 27. Qc6 Kg7) 27. Bf3 {[%emt 0:00:23]} (27. Qe8+ $16 Kh7 28. Bf3 Bxd4 (28... Kg6 $2 29. h4 $18) 29. Qxf7 Rxf2 30. Rxf2 Bxe3 31. Qxe6 Bxf2+ 32. Kh1) 27... g6 $1 $11 {[%emt 0:00:23]} ({Weaker is} 27... Bxf1 28. Qe8+ Kh7 29. Be4+ (29. Kxf1 $2 Rxf2+ 30. Kg1 Rxf3 $19) 29... g6 30. Qxf7+ (30. Kxf1 $2 Rxf2+ 31. Ke1 Kg7 $19) 30... Kh8 31. Bxg6 (31. Qxf6+ Kg8 32. Qxe6+ Kg7 33. Qe7+ Kh8 34. Bxg6 Kg8 35. Qh7+ Kf8 36. Qf7#) 31... Bg7 32. Qe8+) 28. Rd1 $2 {[%emt 0:00:07][%mdl 8192] [#]} (28. Qc8+ $11 Kg7 29. Qc1) 28... Rxd1+ $1 $19 {[%emt 0:01:00]} ({And not} 28... Rxf2 29. d5 Bf5 30. g4 Bxg4 (30... Rxf3 31. Qe8+ Kg7 32. gxf5 $11) 31. Bxg4 $11) 29. Bxd1 {[%emt 0:00:02] [#]} Rb1 $1 {[%emt 0:00:00]} 30. Qa4 {[%emt 0:00:01]} Be2 {[%emt 0:00:03]} 31. Qc2 {[%emt 0:00:01]} Rxd1+ {[%emt 0:00:02]} 32. Kg2 {[%emt 0:00:00]} Bf1+ {[%emt 0:00:12]} 33. Kf3 {[%emt 0:00:01]} (33. Kg1 $142 Re1 34. Qc3) 33... Ra1 $19 {[%emt 0:00:10]} 34. Qb2 {[%emt 0:00:05]} Ra8 {[%emt 0:00:21]} 35. h4 {[%emt 0:00:03]} h5 {[%emt 0:00:05]} 36. Qb7 {[%emt 0:00:02]} Rf8 {[%emt 0:00:03]} 37. Qc6 {[%emt 0:00:03]} Kg7 {[%emt 0:00:07]} 38. Kf4 {[%emt 0:00:03]} Bd3 {[%emt 0:00:05]} 39. Kf3 {[%emt 0:00:01]} Rd8 {[%emt 0:00:01]} 40. Kg2 {[%emt 0:00:03]} Rd5 {[%emt 0:00:02]} 41. Kf3 {[%emt 0:00:03]} (41. Qc3 {might work better.} Ba6 42. Kh1) 41... Rf5+ {[%emt 0:00:04]} 42. Kg2 {[%emt 0:00:00]} Be2 $2 {[%emt 0:00:07]} (42... Ra5 $19 {is more deadly. ...Ra6 would now be deadly.} 43. Qf3 Bc4) 43. Qc7 $2 {[%emt 0:00:04][%mdl 8192]} (43. e4 $17 {nothing else works.} Bf3+ 44. Kh2) 43... Bf3+ $19 {[%emt 0:00:01]} 44. Kh3 {[%emt 0:00:02]} (44. Kf1 $142) 44... e5 {[%emt 0:00:07]} 45. dxe5 {[%emt 0:00:02]} Bxe5 {[%emt 0:00:01]} 46. Qc2 {[%emt 0:00:01]} Bf6 {[%emt 0:00:02]} 47. Qd2 {[%emt 0:00:01]} (47. Qc7 $19) 47... Rd5 {[%emt 0:00:01]} 0-1

[Event "CCT Julius Baer-D2 2024"]
[Site "Online"]
[Date "2024.09.27"]
[Round "1"]
[White "Yakubboev, Nodirbek"]
[Black "So, Wesley"]
[Result "1/2-1/2"]
[ECO "A13"]
[WhiteElo "2666"]
[BlackElo "2752"]
[Annotator "TA"]
[PlyCount "61"]
[EventDate "2024.09.25"]
[EventType "swiss"]
[EventCountry "NET"]
[SourceTitle "playchess.com"]
[Source "ChessBase"]
[SourceQuality "1"]
[TimeControl "600+2"]

{[%evp 10,61,29,21,15,14,22,17,15,0,-1,0,0,0,0,0,0,-10,0,-2,6,0,0,-18,14,6,27,32,77,35,45,0,0,0,14,23,14,0,0,-256,-249,-248,-243,-259,-265,-304,-302,-366,-269,-312,-318,-302,-319,-361]} 1. c4 {[%emt 0:00:02]} e6 {[%emt 0:00:11]} 2. g3 {[%emt 0:00:03]} d5 {[%emt 0:00:05]} 3. Bg2 {[%emt 0:00:02]} Nf6 {[%emt 0:00:05]} 4. Nf3 {[%emt 0:00:02]} d4 {[%emt 0:00:05]} 5. d3 {[%emt 0:00:47]} Nc6 {[%emt 0:00:12]} 6. O-O {[%emt 0:00:11]} Bc5 {[%emt 0:00:03]} 7. Nbd2 {[%emt 0:00:01]} O-O {[%emt 0:00:37]} 8. Nb3 {[%emt 0:00:02]} Be7 {[%emt 0:00:01] Die Stellung ist ausgeglichen.} 9. a4 {[%emt 0:00:36]} e5 {[%emt 0:00:31]} 10. a5 {[%emt 0:00:03]} a6 {[%emt 0:00:01]} 11. e3 {[%emt 0:00:04]} dxe3 {[%emt 0:00:56]} 12. Bxe3 {[%emt 0:00:02]} Be6 {[%emt 0:00:10]} 13. Qe2 {[%emt 0:02:32]} Re8 {[%emt 0:00:05]} 14. d4 {[%emt 0:00:52]} exd4 {[%emt 0:00:03]} 15. Nfxd4 {[%emt 0:00:04]} Bg4 {[%emt 0:00:22]} 16. Qc2 {[%emt 0:00:18]} (16. Qd2 $5) 16... Nxd4 {[%emt 0:01:07]} 17. Bxd4 {[%emt 0:00:10]} c6 {[%emt 0:00:45]} 18. h3 {[%emt 0:00:09]} Bh5 {[%emt 0:00:09]} 19. Qc3 {[%emt 0:00:22] Verhindert Bb4. Weiß steht aktiver.} Bf8 {[%emt 0:00:19]} 20. g4 {[%emt 0:00:23][%cal Od4b6] [#] Bb6! wäre nun fies.} Bg6 {[%emt 0:00:02]} 21. Rad1 {[%emt 0:00:11]} Qc7 {[%emt 0:00:22]} 22. Bb6 {[%emt 0:00:40]} Qf4 {[%emt 0:00:08]} 23. Rd4 {[%emt 0:00:02]} (23. Qd4 {vereinfacht} Qxd4 24. Rxd4 Re2 25. Nc5) 23... Ne4 {[%emt 0:00:08]} 24. Qe1 {[%emt 0:00:54][%mdl 8192]} (24. Bxe4 $11 {und Weiss ist OK.} Rxe4 25. Rxe4 Bxe4 26. Nc5) 24... Bd6 $19 {[%emt 0:00:14]} 25. Rxd6 {[%emt 0:00:26]} Nxd6 {[%emt 0:00:04]} 26. Qb4 {[%emt 0:00:14]} Qxc4 {[%emt 0:00:12]} (26... Nxc4 27. Nc5 $16) 27. Qxd6 {[%emt 0:00:17]} Qxb3 {[%emt 0:00:02]} 28. Qd7 {[%emt 0:00:26]} Be4 {[%emt 0:00:34]} (28... Qxb2 29. Qxb7 Bd3 30. Rd1 $19) 29. Qxb7 {[%emt 0:00:42] [#] Droht Bxe4 und aus. Schwarz hat entscheidenden Vorteil.} Bxg2 {[%emt 0:00:09]} (29... Qxb2 $2 {geht unter.} 30. Bxe4 Qc3 31. Kg2 $18 (31. Bxc6 Rf8 $18)) 30. Kxg2 {[%emt 0:00:00]} Qd5+ {[%emt 0:00:11]} ({Viel schwächer ist} 30... Qxb2 31. Qxc6 Qe2 32. Rc1 $19) 31. Kg3 {[%emt 0:00:08][%mdl 32768] Gewichteter Fehlerwert: Weiß=0.36/Schwarz=0.12 (sehr präzise) .  Verlustzug:     	Weiß=1     	---        Ungenau:       	Weiß=2     	Schwarz=2     OK:         	Weiß=8     	Schwarz=11    Bester:       	Weiß=1     	Schwarz=3    . Ein unerwartetes Ergebnis.} 1/2-1/2

[Event "CCT Julius Baer-D2 2024"]
[Site "Online"]
[Date "2024.09.27"]
[Round "1"]
[White "Anton Guijarro, David"]
[Black "Durarbayli, Vasif"]
[Result "0-1"]
[ECO "B55"]
[WhiteElo "2665"]
[BlackElo "2626"]
[Annotator "ChessBase"]
[PlyCount "82"]
[EventDate "2024.09.25"]
[EventType "swiss"]
[EventCountry "NET"]
[SourceTitle "playchess.com"]
[Source "ChessBase"]
[SourceQuality "1"]
[TimeControl "600+2"]

1. e4 {[%emt 0:00:04]} c5 {[%emt 0:00:05]} 2. Nf3 {[%emt 0:00:03]} d6 {[%emt 0:02:22]} 3. d4 {[%emt 0:00:04]} Nf6 {[%emt 0:00:06]} 4. Bd3 {[%emt 0:00:03]} cxd4 {[%emt 0:00:04]} 5. Nxd4 {[%emt 0:00:02]} Nc6 {[%emt 0:00:02]} 6. Nxc6 {[%emt 0:00:03]} bxc6 {[%emt 0:00:02]} 7. O-O {[%emt 0:00:02]} g6 {[%emt 0:00:03]} 8. b3 {[%emt 0:00:03]} Bg7 {[%emt 0:00:02]} 9. Bb2 {[%emt 0:00:02]} O-O {[%emt 0:00:02]} 10. Nc3 {[%emt 0:00:03]} Nd7 {[%emt 0:00:03]} 11. Na4 {[%emt 0:00:04]} Bxb2 {[%emt 0:00:03]} 12. Nxb2 {[%emt 0:00:02]} Nc5 {[%emt 0:00:03]} 13. Re1 {[%emt 0:00:04]} e5 {[%emt 0:00:02]} 14. Qd2 {[%emt 0:00:04]} Qe7 {[%emt 0:00:19]} 15. Bf1 {[%emt 0:00:26]} Rd8 {[%emt 0:00:04]} 16. Nc4 {[%emt 0:00:16]} Be6 {[%emt 0:00:15]} 17. Na5 {[%emt 0:00:42]} Rac8 {[%emt 0:00:17]} 18. Qc3 {[%emt 0:00:18]} Qc7 {[%emt 0:00:40]} 19. b4 {[%emt 0:00:22]} Na4 {[%emt 0:00:04]} 20. Qa3 {[%emt 0:00:19]} Nb6 {[%emt 0:00:04]} 21. c4 {[%emt 0:00:21]} Nd7 {[%emt 0:01:02]} 22. Rad1 {[%emt 0:01:25]} a6 {[%emt 0:00:43]} 23. c5 {[%emt 0:01:01]} dxc5 {[%emt 0:00:02]} 24. bxc5 {[%emt 0:00:02]} Qa7 {[%emt 0:00:02]} 25. Qg3 {[%emt 0:00:35]} Re8 {[%emt 0:00:23]} 26. Rc1 {[%emt 0:00:14]} Bxa2 {[%emt 0:00:06]} 27. Red1 {[%emt 0:00:13]} Nf6 {[%emt 0:01:21]} 28. f3 {[%emt 0:00:24]} Qc7 {[%emt 0:00:07]} 29. Qe1 {[%emt 0:00:04]} Rcd8 {[%emt 0:00:11]} 30. Qb4 {[%emt 0:00:14]} Rxd1 {[%emt 0:00:14]} 31. Rxd1 {[%emt 0:00:02]} Rb8 {[%emt 0:00:03]} 32. Qc3 {[%emt 0:00:29]} Be6 {[%emt 0:00:05]} 33. Rd6 {[%emt 0:00:31]} Rb1 {[%emt 0:00:05]} 34. Kf2 {[%emt 0:00:15]} Nd7 {[%emt 0:00:16]} 35. Rxc6 {[%emt 0:00:19]} Qb8 {[%emt 0:00:06]} 36. Be2 {[%emt 0:00:03]} Rb2 {[%emt 0:00:12]} 37. Ke3 {[%emt 0:00:15]} Ra2 {[%emt 0:00:13]} 38. Rd6 {[%emt 0:00:11]} Qd8 {[%emt 0:00:26]} 39. c6 {[%emt 0:00:24]} Qb6+ {[%emt 0:00:12]} 40. Kd3 {[%emt 0:00:02]} Nc5+ {[%emt 0:00:14]} 41. Ke3 {[%emt 0:00:16]} Na4+ {[%emt 0:00:06]} 0-1

[Event "CCT Julius Baer-D2 2024"]
[Site "Online"]
[Date "2024.09.27"]
[Round "1"]
[White "Anton Guijarro, David"]
[Black "Durarbayli, Vasif"]
[Result "1-0"]
[ECO "B55"]
[WhiteElo "2665"]
[BlackElo "2626"]
[Annotator "ChessBase"]
[PlyCount "115"]
[EventDate "2024.09.25"]
[EventType "swiss"]
[EventCountry "NET"]
[SourceTitle "playchess.com"]
[Source "ChessBase"]
[SourceQuality "1"]
[TimeControl "600+2"]

1. e4 {[%emt 0:00:03]} c5 {[%emt 0:00:05]} 2. Nf3 {[%emt 0:00:01]} d6 {[%emt 0:00:00]} 3. d4 {[%emt 0:00:01]} Nf6 {[%emt 0:00:03]} 4. Bd3 {[%emt 0:00:20]} cxd4 {[%emt 0:00:33]} 5. Nxd4 {[%emt 0:00:00]} Nc6 {[%emt 0:00:02]} 6. Nxc6 {[%emt 0:00:02]} bxc6 {[%emt 0:00:00]} 7. O-O {[%emt 0:00:03]} g6 {[%emt 0:00:03]} 8. b3 {[%emt 0:00:02]} Bg7 {[%emt 0:00:03]} 9. Bb2 {[%emt 0:00:01]} O-O {[%emt 0:00:06]} 10. Nc3 {[%emt 0:00:18]} Nd7 {[%emt 0:01:33]} 11. Na4 {[%emt 0:00:04]} Bxb2 {[%emt 0:00:26]} 12. Nxb2 {[%emt 0:00:00]} Nc5 {[%emt 0:00:16]} 13. Re1 {[%emt 0:00:04]} e5 {[%emt 0:00:04]} 14. Qd2 {[%emt 0:00:13]} Qh4 {[%emt 0:00:46]} 15. Nc4 {[%emt 0:00:47]} Rd8 {[%emt 0:00:17]} 16. Na5 {[%emt 0:00:23]} Bd7 {[%emt 0:00:27]} 17. b4 {[%emt 0:00:07]} Ne6 {[%emt 0:00:36]} 18. Nb7 {[%emt 0:00:16]} Nf4 {[%emt 0:00:05]} 19. Bf1 {[%emt 0:00:44]} Qg5 {[%emt 0:00:51]} 20. Re3 {[%emt 0:02:26]} Rdb8 {[%emt 0:01:51]} 21. Nxd6 {[%emt 0:00:02]} Nh3+ {[%emt 0:00:19]} 22. Kh1 {[%emt 0:00:04]} Rxb4 {[%emt 0:00:02]} 23. Nc4 {[%emt 0:01:23]} Rab8 {[%emt 0:00:52]} 24. gxh3 {[%emt 0:00:13]} Be6 {[%emt 0:00:13]} 25. Rb3 {[%emt 0:00:41]} Qxd2 {[%emt 0:00:52]} 26. Nxd2 {[%emt 0:00:00]} Bxb3 {[%emt 0:00:00]} 27. axb3 {[%emt 0:00:01]} R4b7 {[%emt 0:00:06]} 28. Kg2 {[%emt 0:00:10]} f6 {[%emt 0:00:02]} 29. Nc4 {[%emt 0:00:10]} Rc7 {[%emt 0:00:03]} 30. h4 {[%emt 0:00:05]} Kf7 {[%emt 0:00:01]} 31. Kg3 {[%emt 0:00:09]} Ke7 {[%emt 0:00:04]} 32. Bd3 {[%emt 0:00:05]} Rg8 {[%emt 0:00:05]} 33. Ra6 {[%emt 0:00:04]} Rb8 {[%emt 0:00:06]} 34. Kg4 {[%emt 0:00:04]} Rg8 {[%emt 0:00:04]} 35. Na5 {[%emt 0:00:04]} h5+ {[%emt 0:00:01]} 36. Kf3 {[%emt 0:00:06]} Rgc8 {[%emt 0:00:00]} 37. Ke3 {[%emt 0:00:06]} Kf7 {[%emt 0:00:06]} 38. Nc4 {[%emt 0:00:03]} Ke7 {[%emt 0:00:01]} 39. Ra5 {[%emt 0:00:07]} Rb8 {[%emt 0:00:02]} 40. Ra1 {[%emt 0:00:11]} Rd8 {[%emt 0:00:02]} 41. f4 {[%emt 0:00:06]} exf4+ {[%emt 0:00:01]} 42. Kxf4 {[%emt 0:00:01]} Kf7 {[%emt 0:00:01]} 43. Ra6 {[%emt 0:00:18]} Kg7 {[%emt 0:00:02]} 44. Ra5 {[%emt 0:00:06]} Rb8 {[%emt 0:00:04]} 45. e5 {[%emt 0:00:10]} Rb5 {[%emt 0:00:04]} 46. exf6+ {[%emt 0:00:05]} Kxf6 {[%emt 0:00:02]} 47. Rxb5 {[%emt 0:00:10]} cxb5 {[%emt 0:00:00]} 48. Nd6 {[%emt 0:00:00]} Rd7 {[%emt 0:00:10]} 49. Nxb5 {[%emt 0:00:03]} a6 {[%emt 0:00:04]} 50. Nc3 {[%emt 0:00:01]} a5 {[%emt 0:00:01]} 51. Ne4+ {[%emt 0:00:03]} Kg7 {[%emt 0:00:01]} 52. Ke5 {[%emt 0:00:13]} Rf7 {[%emt 0:00:01]} 53. c4 {[%emt 0:00:02]} Rf3 {[%emt 0:00:01]} 54. Kd4 {[%emt 0:00:05]} Kf8 {[%emt 0:00:02]} 55. c5 {[%emt 0:00:05]} Ke7 {[%emt 0:00:01]} 56. c6 {[%emt 0:00:06]} Rh3 {[%emt 0:00:01]} 57. Bb5 {[%emt 0:00:04]} Rxh4 {[%emt 0:00:02]} 58. c7 {[%emt 0:00:02]} 1-0

[Event "CCT Julius Baer-D2 2024"]
[Site "Online"]
[Date "2024.09.27"]
[Round "1"]
[White "Sargsyan, Shant"]
[Black "Le, Tuan Minh"]
[Result "1-0"]
[ECO "A46"]
[WhiteElo "2649"]
[BlackElo "2564"]
[Annotator "ChessBase"]
[PlyCount "39"]
[EventDate "2024.09.25"]
[EventType "swiss"]
[EventCountry "NET"]
[SourceTitle "playchess.com"]
[Source "ChessBase"]
[SourceQuality "1"]
[TimeControl "600+2"]

1. d4 {[%emt 0:00:03]} d5 {[%emt 0:00:03]} 2. Nf3 {[%emt 0:00:02]} e6 {[%emt 0:00:02]} 3. g3 {[%emt 0:00:03]} Nf6 {[%emt 0:00:08]} 4. Bg2 {[%emt 0:00:01]} b5 {[%emt 0:00:00]} 5. O-O {[%emt 0:00:03]} Bb7 {[%emt 0:00:07]} 6. Bg5 {[%emt 0:00:02]} Be7 {[%emt 0:00:04]} 7. Bxf6 {[%emt 0:00:05]} Qd7 {[%emt 0:00:01]} 8. Ne5 {[%emt 0:00:12]} Qd6 {[%emt 0:00:12]} 9. Bxg7 {[%emt 0:00:25]} Rg8 {[%emt 0:00:02]} 10. Bh6 {[%emt 0:00:00]} f6 {[%emt 0:00:07]} 11. Nd3 {[%emt 0:00:01]} Nd7 {[%emt 0:00:01]} 12. a4 {[%emt 0:00:03]} b4 {[%emt 0:00:03]} 13. c4 {[%emt 0:00:01]} a5 {[%emt 0:00:08]} 14. cxd5 {[%emt 0:00:03]} Bxd5 {[%emt 0:00:04]} 15. e4 {[%emt 0:00:01]} Bb7 {[%emt 0:00:05]} 16. e5 {[%emt 0:00:07]} Qb6 {[%emt 0:00:00]} 17. Qh5+ {[%emt 0:00:03]} Kd8 {[%emt 0:00:03]} 18. Qf7 {[%emt 0:00:12]} Re8 {[%emt 0:00:05]} 19. Bxb7 {[%emt 0:00:01]} Qxb7 {[%emt 0:00:00]} 20. Nf4 {[%emt 0:00:00]} 1-0

[Event "CCT Julius Baer-D2 2024"]
[Site "Online"]
[Date "2024.09.27"]
[Round "1"]
[White "Sargsyan, Shant"]
[Black "Le, Tuan Minh"]
[Result "1/2-1/2"]
[ECO "D30"]
[WhiteElo "2649"]
[BlackElo "2564"]
[Annotator "ChessBase"]
[PlyCount "177"]
[EventDate "2024.09.25"]
[EventType "swiss"]
[EventCountry "NET"]
[SourceTitle "playchess.com"]
[Source "ChessBase"]
[SourceQuality "1"]
[TimeControl "600+2"]

1. d4 {[%emt 0:00:03]} d5 {[%emt 0:00:05]} 2. Nf3 {[%emt 0:00:00]} e6 {[%emt 0:00:03]} 3. c4 {[%emt 0:00:03]} a6 {[%emt 0:00:01]} 4. Bg5 {[%emt 0:00:00]} Be7 {[%emt 0:00:03]} 5. Bxe7 {[%emt 0:00:02]} Nxe7 {[%emt 0:00:02]} 6. Nbd2 {[%emt 0:00:01]} b6 {[%emt 0:00:03]} 7. g3 {[%emt 0:00:03]} Bb7 {[%emt 0:00:01]} 8. cxd5 {[%emt 0:00:02]} Nxd5 {[%emt 0:00:02]} 9. Bg2 {[%emt 0:00:01]} O-O {[%emt 0:00:01]} 10. O-O {[%emt 0:00:01]} Nd7 {[%emt 0:00:01]} 11. Rc1 {[%emt 0:00:01]} c5 {[%emt 0:00:01]} 12. dxc5 {[%emt 0:00:08]} Nxc5 {[%emt 0:00:01]} 13. Nb3 {[%emt 0:00:02]} Nxb3 {[%emt 0:00:14]} 14. Qxb3 {[%emt 0:00:02]} b5 {[%emt 0:00:00]} 15. Rfd1 {[%emt 0:00:06]} Rc8 {[%emt 0:00:01]} 16. Rxc8 {[%emt 0:00:26]} Qxc8 {[%emt 0:00:02]} 17. Ne5 {[%emt 0:00:03]} Rd8 {[%emt 0:00:25]} 18. h4 {[%emt 0:00:09]} h6 {[%emt 0:00:03]} 19. a4 {[%emt 0:00:24]} Qc7 {[%emt 0:00:33]} 20. Nd3 {[%emt 0:00:34]} bxa4 {[%emt 0:00:06]} 21. Qxa4 {[%emt 0:00:00]} Nb6 {[%emt 0:00:02]} 22. Qf4 {[%emt 0:00:05]} Qe7 {[%emt 0:00:57]} 23. Bxb7 {[%emt 0:00:17]} Qxb7 {[%emt 0:00:00]} 24. Rc1 {[%emt 0:00:01]} Nd5 {[%emt 0:00:04]} 25. Qc4 {[%emt 0:00:21]} a5 {[%emt 0:02:06]} 26. Qa4 {[%emt 0:00:37]} Ra8 {[%emt 0:01:01]} 27. Rc5 {[%emt 0:00:45]} Qa7 {[%emt 0:01:15]} 28. Qd4 {[%emt 0:00:13]} Qb7 {[%emt 0:00:18]} 29. Qa4 {[%emt 0:00:03]} Qa7 {[%emt 0:00:00]} 30. Qc4 {[%emt 0:02:01]} Qb8 {[%emt 0:00:41]} 31. Rb5 {[%emt 0:00:28]} Qd8 {[%emt 0:00:12]} 32. Rb7 {[%emt 0:00:08]} Rc8 {[%emt 0:00:08]} 33. Qd4 {[%emt 0:00:21]} Rc7 {[%emt 0:00:18]} 34. Rxc7 {[%emt 0:00:35]} Qxc7 {[%emt 0:00:02]} 35. Qc5 {[%emt 0:00:01]} Qd8 {[%emt 0:00:01]} 36. b3 {[%emt 0:00:28]} h5 {[%emt 0:00:06]} 37. Ne5 {[%emt 0:00:27]} Nf6 {[%emt 0:00:04]} 38. Nd3 {[%emt 0:00:24]} g6 {[%emt 0:00:08]} 39. Qg5 {[%emt 0:00:11]} Kg7 {[%emt 0:00:06]} 40. Qe5 {[%emt 0:00:01]} Kg8 {[%emt 0:00:09]} 41. Qg5 {[%emt 0:00:04]} Kg7 {[%emt 0:00:32]} 42. Qe5 {[%emt 0:00:13]} Qd5 {[%emt 0:00:08]} 43. Qc3 {[%emt 0:00:26]} Qf5 {[%emt 0:00:09]} 44. Qd4 {[%emt 0:00:07]} Kh7 {[%emt 0:00:19]} 45. f3 {[%emt 0:00:02]} Ne8 {[%emt 0:00:26]} 46. Kg2 {[%emt 0:00:05]} Qb5 {[%emt 0:00:02]} 47. Qa4 {[%emt 0:00:13]} Nd6 {[%emt 0:00:09]} 48. Qf4 {[%emt 0:00:33]} Nf5 {[%emt 0:00:06]} 49. Qc7 {[%emt 0:00:11]} Kg7 {[%emt 0:00:12]} 50. Qc3+ {[%emt 0:00:01]} Kh7 {[%emt 0:00:02]} 51. Qc7 {[%emt 0:00:02]} Nh6 {[%emt 0:00:05]} 52. Kf2 {[%emt 0:00:04]} Qxb3 {[%emt 0:00:05]} 53. Qxa5 {[%emt 0:00:01]} Qb7 {[%emt 0:00:00]} 54. Qc5 {[%emt 0:00:03]} Nf5 {[%emt 0:00:01]} 55. Ne5 {[%emt 0:00:03]} Kg7 {[%emt 0:00:01]} 56. Qc3 {[%emt 0:00:03]} Qa7+ {[%emt 0:00:02]} 57. Kg2 {[%emt 0:00:01]} Ne3+ {[%emt 0:00:01]} 58. Kh2 {[%emt 0:00:02]} Nd5 {[%emt 0:00:01]} 59. Qe1 {[%emt 0:00:05]} Qe3 {[%emt 0:00:06]} 60. Nd3 {[%emt 0:00:01]} f6 {[%emt 0:00:02]} 61. Qf2 {[%emt 0:00:01]} Qd2 {[%emt 0:00:01]} 62. Qe1 {[%emt 0:00:01]} Qc2 {[%emt 0:00:01]} 63. Kg1 {[%emt 0:00:02]} g5 {[%emt 0:00:01]} 64. hxg5 {[%emt 0:00:01]} fxg5 {[%emt 0:00:00]} 65. Qa1+ {[%emt 0:00:01]} Kg6 {[%emt 0:00:01]} 66. Qe5 {[%emt 0:00:05]} Qc6 {[%emt 0:00:04]} 67. Qe4+ {[%emt 0:00:00]} Kf6 {[%emt 0:00:01]} 68. Qe5+ {[%emt 0:00:01]} Kg6 {[%emt 0:00:01]} 69. Qe4+ {[%emt 0:00:01]} Kh6 {[%emt 0:00:00]} 70. Ne5 {[%emt 0:00:03]} Qc5+ {[%emt 0:00:06]} 71. Kg2 {[%emt 0:00:03]} Ne3+ {[%emt 0:00:01]} 72. Kh2 {[%emt 0:00:01]} Nf5 {[%emt 0:00:00]} 73. Nf7+ {[%emt 0:00:05]} Kg7 {[%emt 0:00:05]} 74. Qe5+ {[%emt 0:00:02]} Qxe5 {[%emt 0:00:01]} 75. Nxe5 {[%emt 0:00:00]} Kf6 {[%emt 0:00:00]} 76. Nd7+ {[%emt 0:00:01]} Ke7 {[%emt 0:00:01]} 77. Ne5 {[%emt 0:00:00]} Nd4 {[%emt 0:00:02]} 78. e3 {[%emt 0:00:03]} Nc2 {[%emt 0:00:01]} 79. e4 {[%emt 0:00:02]} Ne1 {[%emt 0:00:02]} 80. Kg1 {[%emt 0:00:03]} Kf6 {[%emt 0:00:02]} 81. Nd7+ {[%emt 0:00:02]} Ke7 {[%emt 0:00:01]} 82. Ne5 {[%emt 0:00:00]} Kf6 {[%emt 0:00:00]} 83. Nd7+ {[%emt 0:00:05]} Kg7 {[%emt 0:00:07]} 84. Ne5 {[%emt 0:00:00]} Nc2 {[%emt 0:00:00]} 85. Kf2 {[%emt 0:00:01]} Kf6 {[%emt 0:00:03]} 86. Nd7+ {[%emt 0:00:02]} Kg7 {[%emt 0:00:04]} 87. Ne5 {[%emt 0:00:00]} Kf6 {[%emt 0:00:02]} 88. Nd7+ {[%emt 0:00:02]} Kg7 {[%emt 0:00:01]} 89. Ne5 {[%emt 0:00:00]} 1/2-1/2